fUST/lending_fUST_20240612
["ID","MTS","AMOUNT","RATE_DAILY","PERIOD"]
[329235242,1718194246277,-500.0,0.00016438,2]
[329235243,1718194246295,-500.0,0.00016438,2]
[329235244,1718194246374,-500.0,0.00016438,2]
[329235245,1718194246385,-500.0,0.00016438,2]
[329235246,1718194246396,-500.0,0.00016438,2]
[329235247,1718194246408,-500.0,0.00016438,2]
[329235248,1718194246419,-500.0,0.00016438,2]
[329235249,1718194246430,-500.0,0.00016438,2]
[329235250,1718194246443,-445.37753126,0.00016438,2]
[329235251,1718194246454,-500.0,0.00016438,2]
[329235252,1718194246465,-500.0,0.00016438,2]
[329235253,1718194246476,-506.35972556,0.00016438,2]
[329235254,1718194246486,-500.0,0.00016438,2]
[329235255,1718194246616,-500.0,0.00016438,2]
[329235256,1718194246627,-500.0,0.00016438,2]
[329235257,1718194246638,-500.0,0.00016438,2]
[329235258,1718194246648,-500.0,0.00016438,2]
[329235259,1718194246660,-328.49690836,0.00016438,2]
[329235260,1718194246671,-500.0,0.00016438,2]
[329235261,1718194246683,-500.0,0.00016438,2]
[329235262,1718194246696,-500.0,0.00016438,2]
[329235263,1718194246706,-458.68720986,0.00016438,2]
[329235264,1718194246717,-514.63232221,0.00016438,2]
[329235265,1718194246729,-500.0,0.00016438,2]
[329235266,1718194246740,-500.0,0.00016438,2]
[329235267,1718194246751,-506.37829844,0.00016438,2]
[329235268,1718194246761,-500.0,0.00016438,2]
[329235269,1718194246771,-500.0,0.00016438,2]
[329235270,1718194246782,-500.0,0.00016438,2]
[329235271,1718194246793,-500.0,0.00016438,2]
[329235272,1718194246803,-500.0,0.00016438,2]
[329235273,1718194246814,-500.0,0.00016438,2]
[329235274,1718194246824,-500.0,0.00016438,2]
[329235275,1718194246834,-500.0,0.00016438,2]
[329235276,1718194246845,-500.0,0.00016438,2]
[329235277,1718194246861,-500.0,0.00016438,2]
[329235278,1718194246871,-500.0,0.00016438,2]
[329235279,1718194246881,-500.0,0.00016438,2]
[329235280,1718194246895,-500.0,0.00016438,2]
[329235281,1718194246907,-500.0,0.00016438,2]
[329235282,1718194246918,-1224.91,0.00016438,2]
[329235283,1718194246932,-500.0,0.00016438,2]
[329235284,1718194246942,-500.0,0.00016438,2]
[329235285,1718194246952,-500.0,0.00016438,2]
[329235286,1718194246963,-500.0,0.00016438,2]
[329235287,1718194246975,-538.81461973,0.00016438,2]
[329235288,1718194246985,-501.14589014,0.00016438,2]
[329235289,1718194246996,-500.0,0.00016438,2]
[329235290,1718194247008,-500.0,0.00016438,2]
[329235291,1718194247019,-500.0,0.00016438,2]
[329235292,1718194247032,-811.68,0.00016438,2]
[329235293,1718194247043,-500.0,0.00016438,2]
[329235294,1718194247054,-500.0,0.00016438,2]
[329235295,1718194247065,-746.94,0.00016438,2]
[329235296,1718194247077,-500.0,0.00016438,2]
[329235297,1718194247088,-500.0,0.00016438,2]
[329235298,1718194247098,-500.0,0.00016438,2]
[329235299,1718194247109,-500.0,0.00016438,2]
[329235300,1718194247121,-559.35,0.00016438,2]
[329235301,1718194247132,-500.0,0.00016438,2]
[329235302,1718194247143,-500.0,0.00016438,2]
[329235303,1718194247154,-510.05180134,0.00016438,2]
[329235304,1718194247164,-500.0,0.00016438,2]
[329235306,1718194247176,-500.0,0.00016438,2]
[329235307,1718194247187,-4620.12,0.00016438,2]
[329235309,1718194247197,-500.0,0.00016438,2]
[329235310,1718194247208,-2096.04,0.00016438,2]
[329235311,1718194247220,-418.44223584,0.00016438,2]
[329235312,1718194247231,-500.0,0.00016438,2]
[329235313,1718194247241,-500.0,0.00016438,2]
[329235314,1718194247252,-500.0,0.00016438,2]
[329235315,1718194247262,-500.0,0.00016438,2]
[329235316,1718194247272,-500.0,0.00016438,2]
[329235317,1718194247283,-500.0,0.00016438,2]
[329235318,1718194247296,-500.0,0.00016438,2]
[329235319,1718194247306,-1495.17,0.00016438,2]
[329235320,1718194247338,-500.0,0.00016438,2]
[329235321,1718194247349,-501.88713346,0.00016438,2]
[329235322,1718194247361,-500.0,0.00016438,2]
[329235323,1718194247378,-500.0,0.00016438,2]
[329235324,1718194247397,-500.0,0.00016438,2]
[329235326,1718194247408,-500.0,0.00016438,2]
[329235328,1718194247424,-503.29665656,0.00016438,2]
[329235329,1718194247466,-500.46600613,0.00016438,2]
[329235331,1718194247484,-500.0,0.00016438,2]
[329235333,1718194247496,-175.82618998,0.00016438,2]
[329235334,1718194247507,-500.0,0.00016438,2]
[329235335,1718194247519,-500.0,0.00016438,2]
[329235336,1718194247543,-500.0,0.00016438,2]
[329235337,1718194247555,-503.20075727,0.00016438,2]
[329235338,1718194247571,-500.0,0.00016438,2]
[329235339,1718194247584,-500.0,0.00016438,2]
[329235340,1718194247595,-18074.59,0.00016438,2]
[329235341,1718194247605,-500.0,0.00016438,2]
[329235342,1718194247616,-500.0,0.00016438,2]
[329235343,1718194247629,-500.0,0.00016438,2]
[329235344,1718194247644,-505.67910671,0.00016438,2]
[329235345,1718194247661,-500.0,0.00016438,2]
[329235346,1718194247679,-500.0,0.00016438,2]
[329235347,1718194247702,-1124.08,0.00016438,2]
[329235348,1718194247714,-503.10150568,0.00016438,2]
[329235349,1718194247727,-500.0,0.00016438,2]
[329235350,1718194247740,-500.0,0.00016438,2]
[329235351,1718194247752,-7462.27,0.00016438,2]
[329235352,1718194247764,-500.0,0.00016438,2]
[329235353,1718194247775,-4399.72,0.00016438,2]
[329235354,1718194247786,-500.0,0.00016438,2]
[329235355,1718194247797,-4544.74,0.00016438,2]
[329235356,1718194247808,-500.0,0.00016438,2]
[329235357,1718194247820,-541.28601631,0.00016438,2]
[329235358,1718194247832,-500.0,0.00016438,2]
[329235359,1718194247843,-168.829355,0.00016438,2]
[329235361,1718194247853,-502.25197149,0.00016438,2]
[329235362,1718194247864,-500.0,0.00016438,2]
[329235363,1718194247875,-500.0,0.00016438,2]
[329235364,1718194247886,-506.08061859,0.00016438,2]
[329235365,1718194247897,-500.0,0.00016438,2]
[329235366,1718194247908,-500.0,0.00016438,2]
[329235367,1718194247919,-500.0,0.00016438,2]
[329235368,1718194247936,-500.0,0.00016438,2]
[329235369,1718194247947,-500.0,0.00016438,2]
[329235370,1718194247959,-500.0,0.00016438,2]
[329235372,1718194247975,-500.0,0.00016438,2]
[329235373,1718194247986,-502.77358706,0.00016438,2]
[329235374,1718194247997,-502.37103518,0.00016438,2]
[329235375,1718194248013,-500.0,0.00016438,2]
[329235376,1718194248025,-500.0,0.00016438,2]
[329235377,1718194248037,-500.0,0.00016438,2]
[329235378,1718194248049,-500.0,0.00016438,2]
[329235379,1718194248061,-12294.97,0.00016438,2]
[329235380,1718194248072,-500.0,0.00016438,2]
[329235382,1718194248084,-500.0,0.00016438,2]
[329235383,1718194248095,-500.0,0.00016438,2]
[329235384,1718194248106,-500.0,0.00016438,2]
[329235385,1718194248118,-500.0,0.00016438,2]
[329235386,1718194248129,-500.27021647,0.00016438,2]
[329235387,1718194248139,-395.55217758,0.00016438,2]
[329235388,1718194248150,-570.88117633,0.00016438,2]
[329235389,1718194248160,-500.0,0.00016438,2]
[329235390,1718194248172,-500.0,0.00016438,2]
[329235391,1718194248183,-563.73777314,0.00016438,2]
[329235392,1718194248194,-505.42748046,0.00016438,2]
[329235394,1718194248205,-500.0,0.00016438,2]
[329235395,1718194248215,-500.0,0.00016438,2]
[329235396,1718194248227,-500.0,0.00016438,2]
[329235397,1718194248240,-502.47421823,0.00016438,2]
[329235398,1718194248251,-500.0,0.00016438,2]
[329235399,1718194248262,-1701.59,0.00016438,2]
[329235400,1718194248274,-509.38548057,0.00016438,2]
[329235401,1718194248285,-500.0,0.00016438,2]
[329235402,1718194248297,-500.0,0.00016438,2]
[329235403,1718194248308,-501.51972479,0.00016438,2]
[329235405,1718194248356,-511.51904992,0.00016438,2]
[329235406,1718194248373,-502.10575409,0.00016438,2]
[329235407,1718194248383,-500.0,0.00016438,2]
[329235408,1718194248397,-500.0,0.00016438,2]
[329235409,1718194248410,-500.0,0.00016438,2]
[329235410,1718194248421,-510.13328018,0.00016438,2]
[329235411,1718194248433,-500.0,0.00016438,2]
[329235412,1718194248446,-416.4950407,0.00016438,2]
[329235413,1718194248457,-500.0,0.00016438,2]
[329235415,1718194248472,-544.54742684,0.00016438,2]
[329235417,1718194248483,-898.94,0.00016438,2]
[329235418,1718194248494,-500.0,0.00016438,2]
[329235419,1718194248512,-500.0,0.00016438,2]
[329235420,1718194248535,-500.0,0.00016438,2]
[329235421,1718194248550,-500.0,0.00016438,2]
[329235422,1718194248578,-500.0,0.00016438,2]
[329235423,1718194248603,-196.16288426,0.00016438,2]
[329235424,1718194248620,-500.0,0.00016438,2]
[329235425,1718194248649,-573.71,0.00016438,2]
[329235426,1718194248660,-573.71,0.00016438,2]
[329235427,1718194248670,-573.71,0.00016438,2]
[329235428,1718194248684,-573.71,0.00016438,2]
[329235429,1718194248704,-573.71,0.00016438,2]
[329235430,1718194248728,-573.71,0.00016438,2]
[329235431,1718194248745,-500.0,0.00016438,2]
[329235432,1718194248757,-544.08327368,0.00016438,2]
[329235433,1718194248767,-500.0,0.00016438,2]
[329235434,1718194248780,-573.71,0.00016438,2]
[329235435,1718194248791,-573.71,0.00016438,2]
[329235436,1718194248801,-573.71,0.00016438,2]
[329235437,1718194248812,-500.0,0.00016438,2]
[329235438,1718194248822,-625.12,0.00016438,2]
[329235439,1718194248832,-498.87519425,0.00016438,2]
[329235440,1718194248842,-500.0,0.00016438,2]
[329235441,1718194248855,-500.0,0.00016438,2]
[329235442,1718194248867,-500.0,0.00016438,2]
[329235443,1718194248878,-500.0,0.00016438,2]
[329235444,1718194248893,-502.91561604,0.00016438,2]
[329235445,1718194248904,-500.0,0.00016438,2]
[329235446,1718194248916,-500.0,0.00016438,2]
[329235448,1718194248943,-216.2,0.0001649,2]
[329235449,1718194248954,-285.52460433,0.00016544,2]
[329235450,1718194248982,-216.2,0.00016635,2]
[329235451,1718194249008,-500.0,0.00016711,2]
[329235452,1718194249022,-500.0,0.00016711,2]
[329235453,1718194249032,-503.8,0.00016711,2]
[329235454,1718194249043,-500.0,0.00016711,2]
[329235455,1718194249056,-265.91783476,0.00016711,2]
[329235456,1718194249080,-573.71,0.00016711,2]
[329235457,1718194249090,-573.71,0.00016711,2]
[329235458,1718194249101,-573.71,0.00016711,2]
[329235459,1718194249112,-573.71,0.00016711,2]
[329235460,1718194249138,-500.0,0.00016712,2]
[329235461,1718194249148,-500.0,0.00016712,2]
[329235462,1718194249158,-528.76772831,0.00016712,2]
[329235463,1718194249169,-500.0,0.00016712,2]
[329235464,1718194249180,-250.0,0.00016712,2]
[329235465,1718194249190,-500.0,0.00016712,2]
[329235466,1718194249201,-500.0,0.00016712,2]
[329235467,1718194249212,-500.0,0.00016712,2]
[329235468,1718194249226,-500.0,0.00016712,2]
[329235469,1718194249236,-500.0,0.00016712,2]
[329235470,1718194249246,-432.45194256,0.00016712,2]
[329235471,1718194249258,-500.0,0.00016712,4]
[329235472,1718194249270,-500.0,0.00016712,2]
[329235473,1718194249285,-500.0,0.00016712,2]
[329235474,1718194249299,-502.68043406,0.00016712,2]
[329235475,1718194249339,-500.0,0.00016712,2]
[329235476,1718194249369,-500.0,0.00016712,2]
[329235477,1718194249385,-500.0,0.00016712,2]
[329235478,1718194249399,-500.0,0.00016712,2]
[329235479,1718194249414,-500.0,0.00016712,2]
[329235480,1718194249427,-599.80711365,0.00016712,2]
[329235481,1718194249440,-500.0,0.00016712,2]
[329235482,1718194249451,-500.0,0.00016712,2]
[329235483,1718194249463,-500.0,0.00016712,2]
[329235484,1718194249475,-439.67644935,0.00016712,2]
[329235485,1718194249486,-501.25252318,0.00016712,2]
[329235486,1718194249496,-500.0,0.00016712,2]
[329235487,1718194249507,-500.0,0.00016712,2]
[329235488,1718194249519,-500.0,0.00016712,2]
[329235489,1718194249530,-500.0,0.00016712,2]
[329235490,1718194249541,-500.0,0.00016712,2]
[329235491,1718194249553,-500.0,0.00016712,2]
[329235492,1718194249564,-500.94295878,0.00016712,2]
[329235493,1718194249575,-500.0,0.00016712,2]
[329235494,1718194249586,-501.11288431,0.00016712,2]
[329235495,1718194249599,-500.0,0.00016712,2]
[329235496,1718194249611,-500.0,0.00016712,2]
[329235497,1718194249624,-231.01724976,0.00016712,2]
[329235498,1718194249641,-514.71833834,0.00016712,2]
[329235499,1718194249664,-500.0,0.00016712,2]
[329235500,1718194249676,-500.0,0.00016712,2]
[329235501,1718194249687,-500.0,0.00016712,2]
[329235502,1718194249697,-500.0,0.00016712,2]
[329235503,1718194249708,-501.22283651,0.00016712,2]
[329235504,1718194249719,-500.0,0.00016712,2]
[329235505,1718194249731,-262.7404496,0.00016712,2]
[329235506,1718194249741,-491.36308645,0.00016712,2]
[329235507,1718194249755,-504.54131382,0.00016712,2]
[329235508,1718194249766,-504.36257956,0.00016712,2]
[329235509,1718194249777,-500.0,0.00016712,2]
[329235510,1718194249788,-500.0,0.00016712,2]
[329235511,1718194249799,-500.0,0.00016712,2]
[329235512,1718194249810,-500.0,0.00016712,2]
[329235513,1718194249852,-505.38485582,0.00016712,2]
[329235514,1718194249864,-507.14075811,0.00016712,2]
[329235515,1718194249874,-500.0,0.00016712,2]
[329235516,1718194249885,-500.0,0.00016712,2]
[329235517,1718194249896,-500.0,0.00016712,2]
[329235518,1718194249906,-568.38,0.00016712,2]
[329235519,1718194249917,-500.0,0.00016712,2]
[329235520,1718194249931,-503.63490696,0.00016712,2]
[329235521,1718194249942,-268.79483604,0.00016712,2]
[329235522,1718194249952,-500.0,0.00016712,2]
[329235523,1718194249962,-500.0,0.00016712,2]
[329235524,1718194249975,-500.0,0.00016712,2]
[329235525,1718194249985,-500.0,0.00016712,2]
[329235526,1718194249995,-500.0,0.00016712,2]
[329235527,1718194250009,-500.0,0.00016712,2]
[329235528,1718194250020,-500.85481312,0.00016712,2]
[329235529,1718194250031,-500.0,0.00016712,2]
[329235530,1718194250042,-500.0,0.00016712,2]
[329235531,1718194250053,-500.0,0.00016712,2]
[329235532,1718194250063,-500.0,0.00016712,2]
[329235533,1718194250074,-395.63674927,0.00016712,2]
[329235534,1718194250084,-500.0,0.00016712,2]
[329235535,1718194250094,-505.72840727,0.00016712,2]
[329235536,1718194250103,-502.79293394,0.00016712,2]
[329235537,1718194250115,-518.61,0.00016712,2]
[329235538,1718194250126,-500.0,0.00016712,2]
[329235539,1718194250137,-875.41,0.00016712,2]
[329235540,1718194250148,-500.0,0.00016712,2]
[329235541,1718194250160,-502.8325886,0.00016712,2]
[329235542,1718194250171,-500.0,0.00016712,2]
[329235543,1718194250181,-500.0,0.00016712,2]
[329235544,1718194250191,-500.0,0.00016712,2]
[329235545,1718194250203,-500.0,0.00016712,2]
[329235546,1718194250213,-500.0,0.00016712,2]
[329235547,1718194250225,-500.0,0.00016712,2]
[329235548,1718194250235,-500.0,0.00016712,2]
[329235549,1718194250245,-500.0,0.00016712,2]
[329235550,1718194250256,-500.0,0.00016712,2]
[329235551,1718194250268,-500.0,0.00016712,2]
[329235552,1718194250279,-500.0,0.00016712,2]
[329235553,1718194250290,-586.59021991,0.00016712,2]
[329235554,1718194250300,-339.12345505,0.00016712,2]
[329235555,1718194250310,-500.0,0.00016712,2]
[329235556,1718194250339,-503.46470665,0.00016712,2]
[329235557,1718194250352,-500.0,0.00016712,2]
[329235558,1718194250369,-500.0,0.00016712,2]
[329235559,1718194250380,-500.0,0.00016712,2]
[329235560,1718194250390,-500.0,0.00016712,2]
[329235561,1718194250402,-500.0,0.00016712,2]
[329235562,1718194250419,-454.08217856,0.00016712,2]
[329235563,1718194250431,-506.2,0.00016712,2]
[329235564,1718194250441,-500.0,0.00016712,2]
[329235565,1718194250453,-500.0,0.00016712,2]
[329235566,1718194250465,-500.0,0.00016712,2]
[329235567,1718194250478,-500.0,0.00016712,2]
[329235568,1718194250489,-500.0,0.00016712,2]
[329235569,1718194250502,-500.0,0.00016712,2]
[329235570,1718194250520,-500.0,0.00016712,2]
[329235571,1718194250554,-500.0,0.00016712,2]
[329235572,1718194250567,-500.0,0.00016712,2]
[329235573,1718194250590,-500.0,0.00016712,2]
[329235574,1718194250602,-500.0,0.00016712,2]
[329235575,1718194250614,-500.0,0.00016712,2]
[329235576,1718194250625,-455.19450785,0.00016712,2]
[329235577,1718194250641,-500.0,0.00016712,2]
[329235578,1718194250653,-501.06033171,0.00016712,2]
[329235579,1718194250665,-500.0,0.00016712,2]
[329235580,1718194250676,-500.0,0.00016712,2]
[329235581,1718194250689,-557.46,0.00016712,2]
[329235582,1718194250701,-500.0,0.00016712,2]
[329235583,1718194250714,-500.0,0.00016712,2]
[329235584,1718194250725,-1224.91,0.00016712,2]
[329235585,1718194250736,-500.0,0.00016712,2]
[329235586,1718194250747,-595.76374772,0.00016712,2]
[329235587,1718194250760,-500.0,0.00016712,2]
[329235588,1718194250771,-462.2779702,0.00016712,2]
[329235589,1718194250782,-500.0,0.00016712,2]
[329235590,1718194250794,-811.68,0.00016712,2]
[329235591,1718194250804,-500.0,0.00016712,2]
[329235592,1718194250816,-500.0,0.00016712,2]
[329235593,1718194250826,-746.94,0.00016712,2]
[329235594,1718194250836,-500.0,0.00016712,2]
[329235595,1718194250847,-500.0,0.00016712,2]
[329235596,1718194250857,-559.35,0.00016712,2]
[329235597,1718194250868,-500.0,0.00016712,2]
[329235598,1718194250878,-500.0,0.00016712,2]
[329235599,1718194250891,-4620.12,0.00016712,2]
[329235600,1718194250901,-500.0,0.00016712,2]
[329235601,1718194250911,-2096.04,0.00016712,2]
[329235602,1718194250922,-506.19296071,0.00016712,2]
[329235603,1718194250937,-500.0,0.00016712,2]
[329235604,1718194250947,-500.0,0.00016712,2]
[329235605,1718194250959,-500.0,0.00016712,2]
[329235606,1718194250969,-500.0,0.00016712,2]
[329235607,1718194250980,-500.0,0.00016712,2]
[329235608,1718194250990,-500.0,0.00016712,2]
[329235609,1718194251001,-1495.17,0.00016712,2]
[329235610,1718194251014,-500.0,0.00016712,2]
[329235611,1718194251024,-512.43162702,0.00016712,2]
[329235612,1718194251034,-502.45741649,0.00016712,2]
[329235613,1718194251044,-471.80922407,0.00016712,2]
[329235614,1718194251057,-500.0,0.00016712,2]
[329235615,1718194251067,-18074.59,0.00016712,2]
[329235616,1718194251078,-504.18130367,0.00016712,2]
[329235617,1718194251088,-500.0,0.00016712,2]
[329235618,1718194251100,-500.0,0.00016712,2]
[329235619,1718194251110,-500.0,0.00016712,2]
[329235620,1718194251120,-1124.08,0.00016712,2]
[329235621,1718194251133,-398.79667137,0.00016712,2]
[329235622,1718194251144,-500.0,0.00016712,2]
[329235623,1718194251176,-7462.27,0.00016712,2]
[329235624,1718194251207,-500.0,0.00016712,2]
[329235625,1718194251218,-4399.72,0.00016712,2]
[329235626,1718194251230,-500.0,0.00016712,2]
[329235627,1718194251240,-4544.74,0.00016712,2]
[329235628,1718194251250,-500.0,0.00016712,2]
[329235629,1718194251260,-500.0,0.00016712,2]
[329235630,1718194251271,-500.0,0.00016712,2]
[329235631,1718194251282,-588.10580168,0.00016712,2]
[329235632,1718194251293,-500.0,0.00016712,2]
[329235633,1718194251304,-506.61612816,0.00016712,2]
[329235634,1718194251314,-12294.97,0.00016712,2]
[329235635,1718194251346,-502.05622072,0.00016712,2]
[329235636,1718194251357,-500.58069483,0.00016712,2]
[329235637,1718194251368,-500.0,0.00016712,2]
[329235638,1718194251379,-500.0,0.00016712,2]
[329235639,1718194251390,-505.55929307,0.00016712,2]
[329235640,1718194251401,-500.0,0.00016712,2]
[329235641,1718194251412,-500.0,0.00016712,2]
[329235642,1718194251423,-500.0,0.00016712,2]
[329235643,1718194251437,-1701.59,0.00016712,2]
[329235644,1718194251449,-500.0,0.00016712,2]
[329235645,1718194251471,-500.0,0.00016712,2]
[329235646,1718194251485,-500.0,0.00016712,2]
[329235647,1718194251511,-500.0,0.00016712,2]
[329235648,1718194251554,-500.0,0.00016712,2]
[329235649,1718194251568,-501.02092364,0.00016712,2]
[329235650,1718194251578,-898.94,0.00016712,2]
[329235651,1718194251588,-500.0,0.00016712,2]
[329235652,1718194251598,-500.0,0.00016712,2]
[329235653,1718194251608,-505.99340678,0.00016712,2]
[329235654,1718194251618,-500.0,0.00016712,2]
[329235655,1718194251628,-500.0,0.00016712,2]
[329235656,1718194251638,-500.0,0.00016712,2]
[329235657,1718194251648,-364.40529576,0.00016712,2]
[329235658,1718194251658,-561.26486344,0.00016712,2]
[329235659,1718194251670,-625.12,0.00016712,2]
[329235660,1718194251680,-500.0,0.00016712,2]
[329235661,1718194251691,-500.0,0.00016712,2]
[329235662,1718194251701,-500.0,0.00016712,2]
[329235663,1718194251711,-500.0,0.00016712,2]
[329235664,1718194251722,-500.0,0.00016712,2]
[329235665,1718194251734,-500.0,0.00016712,2]
[329235666,1718194251744,-285.52460433,0.00016749,2]
[329235667,1718194251755,-216.2,0.00016781,2]
[329235668,1718194251765,-216.2,0.00016926,2]
[329235669,1718194251775,-285.52460433,0.00016955,2]
[329235670,1718194251785,-573.71,0.00016985,2]
[329235671,1718194251797,-573.71,0.00016985,2]
[329235672,1718194251808,-573.71,0.00016985,2]
[329235673,1718194251819,-500.0,0.00016986,2]
[329235674,1718194251829,-250.0,0.00016986,2]
[329235675,1718194251839,-500.0,0.00016986,2]
[329235676,1718194251851,-509.95549602,0.00016986,2]
[329235677,1718194251860,-511.39106394,0.00016986,2]
[329235678,1718194251871,-500.0,0.00016986,4]
[329235679,1718194251881,-500.0,0.00016986,2]
[329235680,1718194251891,-500.0,0.00016986,2]
[329235681,1718194251901,-500.0,0.00016986,2]
[329235682,1718194251911,-503.47347521,0.00016986,2]
[329235683,1718194251925,-500.0,0.00016986,2]
[329235684,1718194251937,-500.0,0.00016986,2]
[329235685,1718194251947,-500.0,0.00016986,2]
[329235686,1718194251958,-500.0,0.00016986,2]
[329235687,1718194251970,-500.0,0.00016986,2]
[329235688,1718194251981,-500.0,0.00016986,2]
[329235689,1718194251992,-500.0,0.00016986,2]
[329235690,1718194252003,-500.0,0.00016986,2]
[329235691,1718194252014,-500.0,0.00016986,2]
[329235692,1718194252024,-502.42748652,0.00016986,2]
[329235693,1718194252034,-500.0,0.00016986,2]
[329235694,1718194252044,-500.0,0.00016986,2]
[329235695,1718194252055,-509.03803447,0.00016986,2]
[329235696,1718194252065,-500.0,0.00016986,2]
[329235697,1718194252075,-508.73609276,0.00016986,2]
[329235698,1718194252087,-500.0,0.00016986,2]
[329235699,1718194252098,-500.0,0.00016986,2]
[329235700,1718194252109,-506.34432331,0.00016986,2]
[329235701,1718194252118,-568.38,0.00016986,2]
[329235702,1718194252129,-500.0,0.00016986,2]
[329235703,1718194252138,-500.0,0.00016986,2]
[329235704,1718194252148,-500.0,0.00016986,2]
[329235705,1718194252158,-500.0,0.00016986,2]
[329235706,1718194252168,-500.0,0.00016986,2]
[329235707,1718194252178,-500.0,0.00016986,2]
[329235708,1718194252188,-500.0,0.00016986,2]
[329235709,1718194252198,-500.0,0.00016986,2]
[329235710,1718194252208,-500.0,0.00016986,2]
[329235711,1718194252219,-518.61,0.00016986,2]
[329235712,1718194252230,-500.0,0.00016986,2]
[329235713,1718194252240,-875.41,0.00016986,2]
[329235714,1718194252249,-500.0,0.00016986,2]
[329235715,1718194252259,-500.0,0.00016986,2]
[329235716,1718194252269,-500.0,0.00016986,2]
[329235717,1718194252279,-500.0,0.00016986,2]
[329235718,1718194252289,-500.0,0.00016986,2]
[329235719,1718194252299,-500.0,0.00016986,2]
[329235720,1718194252309,-518.35004106,0.00016986,2]
[329235721,1718194252328,-500.0,0.00016986,2]
[329235722,1718194252341,-500.0,0.00016986,2]
[329235723,1718194252351,-500.0,0.00016986,2]
[329235724,1718194252361,-500.0,0.00016986,2]
[329235725,1718194252370,-500.0,0.00016986,2]
[329235726,1718194252380,-500.0,0.00016986,2]
[329235727,1718194252389,-500.0,0.00016986,2]
[329235728,1718194252400,-500.0,0.00016986,2]
[329235729,1718194252410,-500.0,0.00016986,2]
[329235730,1718194252420,-506.2,0.00016986,2]
[329235731,1718194252430,-502.23868238,0.00016986,2]
[329235732,1718194252440,-500.0,0.00016986,2]
[329235733,1718194252450,-500.0,0.00016986,2]
[329235734,1718194252460,-509.88633484,0.00016986,2]
[329235735,1718194252470,-500.0,0.00016986,2]
[329235736,1718194252482,-500.0,0.00016986,2]
[329235737,1718194252493,-510.24599889,0.00016986,2]
[329235738,1718194252503,-500.0,0.00016986,2]
[329235739,1718194252514,-500.0,0.00016986,2]
[329235740,1718194252525,-500.0,0.00016986,2]
[329235741,1718194252535,-505.60901484,0.00016986,2]
[329235742,1718194252545,-500.0,0.00016986,2]
[329235743,1718194252555,-500.0,0.00016986,2]
[329235744,1718194252565,-501.34714242,0.00016986,2]
[329235745,1718194252575,-1224.91,0.00016986,2]
[329235746,1718194252585,-500.0,0.00016986,2]
[329235747,1718194252595,-500.0,0.00016986,2]
[329235748,1718194252605,-500.0,0.00016986,2]
[329235749,1718194252615,-811.68,0.00016986,2]
[329235750,1718194252625,-500.0,0.00016986,2]
[329235751,1718194252636,-746.94,0.00016986,2]
[329235752,1718194252646,-500.0,0.00016986,2]
[329235753,1718194252656,-500.0,0.00016986,2]
[329235754,1718194252666,-559.35,0.00016986,2]
[329235755,1718194252677,-500.0,0.00016986,2]